[Event "European Online Club-ch-B 2021"]
[Site "Online"]
[Date "2021.03.27"]
[Round "4.11"]
[White "Thomas, Anysia"]
[Black "Veinberg, Nimrod"]
[Result "0-1"]
[ECO "E18"]
[WhiteElo "2164"]
[BlackElo "2404"]
[Annotator "NA"]
[PlyCount "72"]
[EventDate "2021.03.27"]
[EventType "team-tourn"]
[EventCountry "NET"]
[SourceTitle "playchess.com"]
[Source "ChessBase"]
[SourceQuality "1"]
[TimeControl "900+5"]

1. d4 {[%emt 0:00:00]} Nf6 {[%emt 0:00:06]} 2. c4 {[%emt 0:00:02]} e6 {[%emt 0:00:01]} 3. Nf3 {[%emt 0:00:02]} d5 {[%emt 0:00:01]} 4. g3 {[%emt 0:00:01]} Be7 {[%emt 0:00:09]} 5. Bg2 {[%emt 0:00:03]} O-O {[%emt 0:00:02]} 6. O-O {[%emt 0:00:02]} b6 {[%emt 0:00:33]} 7. Ne5 {[%emt 0:00:46]} Bb7 {[%emt 0:00:05]} 8. Nc3 {[%emt 0:00:09]} c5 {[%emt 0:00:10]} 9. cxd5 {[%emt 0:00:11]} Nxd5 {[%emt 0:00:28]} 10. Nxd5 {[%emt 0:00:23]} exd5 {[%emt 0:00:23]} 11. b3 {[%emt 0:01:23]} Nd7 {[%emt 0:00:18]} 12. Bb2 {[%emt 0:01:11]} Nxe5 {[%emt 0:00:06]} 13. dxe5 {[%emt 0:00:03]} Qd7 {[%emt 0:00:02]} 14. e3 {[%emt 0:00:13]} Rad8 {[%emt 0:00:02]} 15. Qf3 {[%emt 0:01:21]} Ba8 {[%emt 0:00:47]} 16. Qf4 {[%emt 0:01:12]} f6 {[%emt 0:00:21]} 17. exf6 {[%emt 0:01:43]} Bxf6 {[%emt 0:00:00]} 18. Bxf6 {[%emt 0:00:02]} Rxf6 {[%emt 0:00:01]} 19. Qh4 {[%emt 0:00:03]} Bb7 {[%emt 0:00:02]} 20. Rad1 {[%emt 0:00:10]} Qf7 {[%emt 0:00:03]} 21. e4 {[%emt 0:00:45]} Rf8 {[%emt 0:01:06]} 22. f4 {[%emt 0:01:29]} dxe4 {[%emt 0:00:07]} 23. Rfe1 {[%emt 0:00:13]} Re8 {[%emt 0:00:48]} 24. Qg4 {[%emt 0:01:22]} Qe6 {[%emt 0:00:21]} 25. Qh5 {[%emt 0:01:02]} Rf5 {[%emt 0:01:10]} 26. Qe2 {[%emt 0:00:24]} Rd5 {[%emt 0:00:35]} 27. Rc1 {[%emt 0:00:40]} Rd4 {[%emt 0:00:12]} 28. Qh5 {[%emt 0:00:30]} Red8 {[%emt 0:00:27]} 29. Bh3 {[%emt 0:00:10]} Qf6 {[%emt 0:00:25]} 30. Bg2 {[%emt 0:00:19]} Rd2 {[%emt 0:00:13]} 31. Rc4 {[%emt 0:00:39]} g6 {[%emt 0:00:28]} 32. Qh3 {[%emt 0:00:43]} R8d4 {[%emt 0:00:41]} 33. Rcc1 {[%emt 0:00:19]} Rxa2 {[%emt 0:00:16]} 34. Qh6 {[%emt 0:00:10]} Rxg2+ {[%emt 0:00:52]} 35. Kxg2 {[%emt 0:00:02]} e3+ {[%emt 0:00:00]} 36. Kg1 {[%emt 0:00:06]} Qc6 {[%emt 0:00:06]} 0-1

[Event "European Online Club-ch-B 2021"]
[Site "Online"]
[Date "2021.03.27"]
[Round "4.12"]
[White "Zlatin, Alexander"]
[Black "Frantz, Nicolas"]
[Result "1-0"]
[ECO "B22"]
[WhiteElo "2343"]
[BlackElo "2140"]
[Annotator "NA"]
[PlyCount "61"]
[EventDate "2021.03.27"]
[EventType "team-tourn"]
[EventCountry "NET"]
[SourceTitle "playchess.com"]
[Source "ChessBase"]
[SourceQuality "1"]
[TimeControl "900+5"]

1. e4 {[%emt 0:00:00]} c5 {[%emt 0:00:03]} 2. d4 {[%emt 0:00:05]} cxd4 {[%emt 0:00:02]} 3. c3 {[%emt 0:00:01]} Nf6 {[%emt 0:00:02]} 4. e5 {[%emt 0:00:01]} Nd5 {[%emt 0:00:01]} 5. cxd4 {[%emt 0:00:02]} d6 {[%emt 0:00:02]} 6. Nf3 {[%emt 0:00:01]} e6 {[%emt 0:00:02]} 7. Nc3 {[%emt 0:00:15]} Nxc3 {[%emt 0:00:02]} 8. bxc3 {[%emt 0:00:00]} Qc7 {[%emt 0:00:02]} 9. Bd2 {[%emt 0:00:11]} Nd7 {[%emt 0:00:02]} 10. Bb5 {[%emt 0:00:13]} a6 {[%emt 0:00:04]} 11. exd6 {[%emt 0:00:12]} Bxd6 {[%emt 0:00:03]} 12. Bd3 {[%emt 0:00:01]} O-O {[%emt 0:00:20]} 13. O-O {[%emt 0:00:22]} b5 {[%emt 0:00:03]} 14. a4 {[%emt 0:00:32]} bxa4 {[%emt 0:00:16]} 15. Rxa4 {[%emt 0:00:30]} Bb7 {[%emt 0:00:02]} 16. h3 {[%emt 0:00:14]} Bf4 {[%emt 0:00:33]} 17. Bxf4 {[%emt 0:00:26]} Qxf4 {[%emt 0:00:00]} 18. Bxh7+ {[%emt 0:00:47]} Kxh7 {[%emt 0:00:58]} 19. Qb1+ {[%emt 0:00:03]} Kg8 {[%emt 0:00:05]} 20. Qxb7 {[%emt 0:00:03]} Nc5 {[%emt 0:00:23]} 21. g3 {[%emt 0:01:09]} Qxg3+ {[%emt 0:03:29]} 22. fxg3 {[%emt 0:00:00]} Nxb7 {[%emt 0:00:01]} 23. Ne5 {[%emt 0:00:23]} a5 {[%emt 0:00:11]} 24. c4 {[%emt 0:00:32]} Rfd8 {[%emt 0:00:25]} 25. c5 {[%emt 0:00:35]} f6 {[%emt 0:00:13]} 26. Nf3 {[%emt 0:00:25]} e5 {[%emt 0:00:22]} 27. c6 {[%emt 0:00:05]} Nd6 {[%emt 0:00:15]} 28. dxe5 {[%emt 0:00:03]} fxe5 {[%emt 0:00:01]} 29. Nxe5 {[%emt 0:00:01]} Nb5 {[%emt 0:00:02]} 30. Ng6 {[%emt 0:00:15]} Ra7 {[%emt 0:00:26]} 31. Rh4 {[%emt 0:00:05]} 1-0

[Event "European Online Club-ch-B 2021"]
[Site "Online"]
[Date "2021.03.27"]
[Round "4.13"]
[White "Vidit, Santosh Gujrathi"]
[Black "Santos Latasa, Jaime"]
[Result "1-0"]
[ECO "D50"]
[WhiteElo "2726"]
[BlackElo "2608"]
[Annotator "ChessBase"]
[PlyCount "105"]
[EventDate "2021.03.27"]
[EventType "team-tourn"]
[EventCountry "NET"]
[SourceTitle "playchess.com"]
[Source "ChessBase"]
[SourceQuality "1"]
[TimeControl "900+5"]

1. d4 {[%emt 0:00:00]} Nf6 {[%emt 0:00:02]} 2. c4 {[%emt 0:00:03]} e6 {[%emt 0:00:02]} 3. Nf3 {[%emt 0:00:03]} d5 {[%emt 0:00:02]} 4. Nc3 {[%emt 0:00:03]} c5 {[%emt 0:00:04]} 5. cxd5 {[%emt 0:00:06]} cxd4 {[%emt 0:00:02]} 6. Qxd4 {[%emt 0:00:02]} exd5 {[%emt 0:00:02]} 7. Bg5 {[%emt 0:03:01]} Be7 {[%emt 0:00:03]} 8. e3 {[%emt 0:00:03]} O-O {[%emt 0:00:03]} 9. Qa4 {[%emt 0:00:05]} h6 {[%emt 0:00:30]} 10. Bh4 {[%emt 0:00:02]} Nc6 {[%emt 0:00:07]} 11. Bb5 {[%emt 0:00:57]} Bd7 {[%emt 0:00:03]} 12. O-O {[%emt 0:00:41]} a6 {[%emt 0:00:06]} 13. Bxc6 {[%emt 0:00:02]} bxc6 {[%emt 0:00:10]} 14. Ne5 {[%emt 0:00:13]} Qc7 {[%emt 0:00:04]} 15. Nxd7 {[%emt 0:00:44]} Qxd7 {[%emt 0:00:03]} 16. Rfd1 {[%emt 0:00:34]} Qb7 {[%emt 0:00:14]} 17. Rd2 {[%emt 0:02:14]} Rac8 {[%emt 0:00:08]} 18. Rad1 {[%emt 0:00:23]} Rfd8 {[%emt 0:00:05]} 19. h3 {[%emt 0:00:05]} Kf8 {[%emt 0:01:17]} 20. Bg3 {[%emt 0:00:48]} Bb4 {[%emt 0:00:32]} 21. Qb3 {[%emt 0:01:14]} Qe7 {[%emt 0:00:19]} 22. Rd4 {[%emt 0:01:06]} Bxc3 {[%emt 0:00:58]} 23. bxc3 {[%emt 0:00:03]} Ne4 {[%emt 0:00:03]} 24. Bf4 {[%emt 0:00:13]} Qf6 {[%emt 0:00:42]} 25. Qc2 {[%emt 0:00:32]} g5 {[%emt 0:01:03]} 26. Bh2 {[%emt 0:00:03]} Qe7 {[%emt 0:00:28]} 27. c4 {[%emt 0:00:29]} dxc4 {[%emt 0:00:12]} 28. Qxc4 {[%emt 0:00:48]} c5 {[%emt 0:00:05]} 29. Rd5 {[%emt 0:00:13]} Rxd5 {[%emt 0:00:43]} 30. Qxd5 {[%emt 0:01:03]} Re8 {[%emt 0:00:19]} 31. Qf5 {[%emt 0:00:47]} Kg8 {[%emt 0:00:17]} 32. Rc1 {[%emt 0:00:21]} Qd8 {[%emt 0:02:03]} 33. Rf1 {[%emt 0:00:26]} c4 {[%emt 0:00:08]} 34. h4 {[%emt 0:00:09]} c3 {[%emt 0:00:10]} 35. hxg5 {[%emt 0:00:01]} hxg5 {[%emt 0:00:18]} 36. f3 {[%emt 0:00:08]} Nd2 {[%emt 0:00:03]} 37. Re1 {[%emt 0:00:09]} Qe7 {[%emt 0:00:21]} 38. Bg3 {[%emt 0:00:08]} Nc4 {[%emt 0:00:07]} 39. Qd3 {[%emt 0:00:05]} Qb4 {[%emt 0:00:16]} 40. Rc1 {[%emt 0:00:05]} Rxe3 {[%emt 0:00:08]} 41. Qd8+ {[%emt 0:00:01]} Kh7 {[%emt 0:00:19]} 42. Qxg5 {[%emt 0:00:01]} Qb5 {[%emt 0:00:28]} 43. Qh4+ {[%emt 0:00:05]} Kg8 {[%emt 0:00:06]} 44. Qg4+ {[%emt 0:00:07]} Kh7 {[%emt 0:00:03]} 45. Qh4+ {[%emt 0:00:04]} Kg8 {[%emt 0:00:02]} 46. Bf2 {[%emt 0:00:05]} Rd3 {[%emt 0:01:51]} 47. Bd4 {[%emt 0:00:05]} Ne5 {[%emt 0:00:03]} 48. Qg5+ {[%emt 0:00:11]} Ng6 {[%emt 0:00:02]} 49. Qf6 {[%emt 0:00:04]} Kf8 {[%emt 0:00:07]} 50. Re1 {[%emt 0:00:03]} Rxd4 {[%emt 0:00:09]} 51. Qxd4 {[%emt 0:00:01]} c2 {[%emt 0:00:04]} 52. Rc1 {[%emt 0:00:06]} Qb1 {[%emt 0:00:05]} 53. Qc5+ {[%emt 0:00:01]} 1-0

[Event "European Online Club-ch-B 2021"]
[Site "Online"]
[Date "2021.03.27"]
[Round "4.15"]
[White "Sasikiran, Krishnan"]
[Black "Matnadze, Ana"]
[Result "1-0"]
[ECO "B12"]
[WhiteElo "2647"]
[BlackElo "2421"]
[Annotator "ChessBase"]
[PlyCount "83"]
[EventDate "2021.03.27"]
[EventType "team-tourn"]
[EventCountry "NET"]
[SourceTitle "playchess.com"]
[Source "ChessBase"]
[SourceQuality "1"]
[TimeControl "900+5"]

1. e4 {[%emt 0:00:00]} c6 {[%emt 0:00:08]} 2. d4 {[%emt 0:00:03]} d5 {[%emt 0:00:03]} 3. e5 {[%emt 0:00:02]} a6 {[%emt 0:00:03]} 4. Nd2 {[%emt 0:00:43]} c5 {[%emt 0:00:13]} 5. dxc5 {[%emt 0:00:32]} Qc7 {[%emt 0:00:54]} 6. Ngf3 {[%emt 0:01:08]} Bg4 {[%emt 0:00:11]} 7. c4 {[%emt 0:02:06]} e6 {[%emt 0:03:32]} 8. b4 {[%emt 0:02:43]} Nc6 {[%emt 0:00:26]} 9. Bb2 {[%emt 0:03:32]} Bxf3 {[%emt 0:03:24]} 10. Nxf3 {[%emt 0:02:02]} Nxb4 {[%emt 0:00:07]} 11. Qa4+ {[%emt 0:01:12]} Nc6 {[%emt 0:00:05]} 12. cxd5 {[%emt 0:00:04]} exd5 {[%emt 0:00:04]} 13. Bb5 {[%emt 0:00:06]} Bxc5 {[%emt 0:00:33]} 14. Rc1 {[%emt 0:00:46]} Qb6 {[%emt 0:00:34]} 15. Bxc6+ {[%emt 0:00:20]} bxc6 {[%emt 0:00:04]} 16. O-O {[%emt 0:00:09]} Ne7 {[%emt 0:00:22]} 17. Qc2 {[%emt 0:00:20]} Bb4 {[%emt 0:00:39]} 18. a3 {[%emt 0:00:12]} Ba5 {[%emt 0:00:17]} 19. Bd4 {[%emt 0:00:21]} Qd8 {[%emt 0:00:15]} 20. Bc5 {[%emt 0:00:07]} O-O {[%emt 0:00:50]} 21. Ng5 {[%emt 0:00:02]} Ng6 {[%emt 0:00:11]} 22. Bxf8 {[%emt 0:00:08]} Qxg5 {[%emt 0:00:24]} 23. Bd6 {[%emt 0:00:03]} Nf4 {[%emt 0:01:19]} 24. g3 {[%emt 0:00:02]} Rc8 {[%emt 0:00:55]} 25. Kh1 {[%emt 0:00:03]} Ne6 {[%emt 0:00:11]} 26. Qa4 {[%emt 0:00:06]} Bd2 {[%emt 0:00:35]} 27. Rxc6 {[%emt 0:00:04]} Rd8 {[%emt 0:00:04]} 28. Rxa6 {[%emt 0:00:05]} h5 {[%emt 0:00:12]} 29. Ra8 {[%emt 0:00:05]} d4 {[%emt 0:00:20]} 30. Qc6 {[%emt 0:00:07]} Rxa8 {[%emt 0:00:08]} 31. Qxa8+ {[%emt 0:00:02]} Kh7 {[%emt 0:00:00]} 32. Qe4+ {[%emt 0:00:03]} g6 {[%emt 0:00:03]} 33. Rd1 {[%emt 0:00:02]} Ba5 {[%emt 0:00:03]} 34. Qf3 {[%emt 0:00:03]} Kg7 {[%emt 0:00:06]} 35. h4 {[%emt 0:00:11]} Qd8 {[%emt 0:00:03]} 36. Rb1 {[%emt 0:00:02]} Qd7 {[%emt 0:00:11]} 37. Rb7 {[%emt 0:00:03]} Qe8 {[%emt 0:00:05]} 38. Kh2 {[%emt 0:00:03]} Bd8 {[%emt 0:00:04]} 39. Rb8 {[%emt 0:00:04]} Qd7 {[%emt 0:00:04]} 40. a4 {[%emt 0:00:04]} Qa7 {[%emt 0:00:14]} 41. Rb7 {[%emt 0:00:02]} Qxa4 {[%emt 0:00:19]} 42. Qxf7+ {[%emt 0:00:03]} 1-0

[Event "European Online Club-ch-B 2021"]
[Site "Online"]
[Date "2021.03.27"]
[Round "4.18"]
[White "Fontaine, Robert"]
[Black "Svane, Rasmus"]
[Result "1-0"]
[ECO "B15"]
[WhiteElo "2550"]
[BlackElo "2613"]
[Annotator "ChessBase"]
[PlyCount "181"]
[EventDate "2021.03.27"]
[EventType "team-tourn"]
[EventCountry "NET"]
[SourceTitle "playchess.com"]
[Source "ChessBase"]
[SourceQuality "1"]
[TimeControl "900+5"]

1. e4 {[%emt 0:00:00]} c6 {[%emt 0:00:02]} 2. d4 {[%emt 0:00:02]} d5 {[%emt 0:00:02]} 3. Nd2 {[%emt 0:00:01]} dxe4 {[%emt 0:00:02]} 4. Nxe4 {[%emt 0:00:02]} Nf6 {[%emt 0:00:01]} 5. Nxf6+ {[%emt 0:00:01]} exf6 {[%emt 0:00:00]} 6. c3 {[%emt 0:00:01]} Bd6 {[%emt 0:00:01]} 7. Bd3 {[%emt 0:00:01]} O-O {[%emt 0:00:01]} 8. Ne2 {[%emt 0:00:01]} Re8 {[%emt 0:00:02]} 9. O-O {[%emt 0:00:01]} Nd7 {[%emt 0:00:05]} 10. Bf4 {[%emt 0:00:14]} Nf8 {[%emt 0:00:04]} 11. Qd2 {[%emt 0:00:05]} Be6 {[%emt 0:00:58]} 12. Rfe1 {[%emt 0:00:06]} Ng6 {[%emt 0:00:21]} 13. Bg3 {[%emt 0:00:08]} Qd7 {[%emt 0:00:24]} 14. a3 {[%emt 0:00:22]} Rad8 {[%emt 0:00:12]} 15. Rad1 {[%emt 0:00:33]} Bb3 {[%emt 0:00:52]} 16. Bc2 {[%emt 0:00:04]} Bd5 {[%emt 0:00:06]} 17. Bxd6 {[%emt 0:00:35]} Qxd6 {[%emt 0:00:06]} 18. Ng3 {[%emt 0:01:08]} Qf4 {[%emt 0:05:55]} 19. Qxf4 {[%emt 0:00:16]} Nxf4 {[%emt 0:00:00]} 20. f3 {[%emt 0:00:07]} g6 {[%emt 0:00:31]} 21. Kf2 {[%emt 0:00:03]} f5 {[%emt 0:00:21]} 22. Nf1 {[%emt 0:00:16]} Kg7 {[%emt 0:00:38]} 23. h4 {[%emt 0:00:23]} Be6 {[%emt 0:00:26]} 24. Re5 {[%emt 0:00:52]} Rd6 {[%emt 0:00:28]} 25. Rde1 {[%emt 0:00:13]} Red8 {[%emt 0:00:02]} 26. g3 {[%emt 0:00:06]} Nd5 {[%emt 0:00:08]} 27. Nd2 {[%emt 0:01:27]} Nb6 {[%emt 0:00:27]} 28. R5e2 {[%emt 0:00:54]} R6d7 {[%emt 0:01:35]} 29. f4 {[%emt 0:00:32]} h6 {[%emt 0:00:14]} 30. Nf3 {[%emt 0:00:23]} Rc7 {[%emt 0:00:38]} 31. h5 {[%emt 0:00:29]} gxh5 {[%emt 0:00:26]} 32. Nh4 {[%emt 0:00:19]} Kf6 {[%emt 0:00:04]} 33. Bd3 {[%emt 0:01:48]} c5 {[%emt 0:00:29]} 34. dxc5 {[%emt 0:00:02]} Rxc5 {[%emt 0:00:13]} 35. Bb1 {[%emt 0:00:23]} Bc4 {[%emt 0:00:38]} 36. Re5 {[%emt 0:00:05]} Rd2+ {[%emt 0:00:03]} 37. Ke3 {[%emt 0:00:27]} Rcd5 {[%emt 0:00:23]} 38. Rxf5+ {[%emt 0:00:02]} Rxf5 {[%emt 0:00:10]} 39. Kxd2 {[%emt 0:00:05]} Rb5 {[%emt 0:00:06]} 40. b4 {[%emt 0:00:22]} Rd5+ {[%emt 0:00:02]} 41. Ke3 {[%emt 0:00:31]} Bb5 {[%emt 0:00:10]} 42. Nf3 {[%emt 0:00:38]} Nc4+ {[%emt 0:00:24]} 43. Kf2 {[%emt 0:00:01]} Rd7 {[%emt 0:00:19]} 44. Nd4 {[%emt 0:00:33]} Bc6 {[%emt 0:00:07]} 45. Ba2 {[%emt 0:00:37]} Nxa3 {[%emt 0:00:12]} 46. Re5 {[%emt 0:00:02]} a6 {[%emt 0:00:14]} 47. Rxh5 {[%emt 0:00:10]} Nb5 {[%emt 0:00:02]} 48. Rxh6+ {[%emt 0:00:11]} Kg7 {[%emt 0:00:06]} 49. Nf5+ {[%emt 0:00:03]} Kg8 {[%emt 0:00:02]} 50. c4 {[%emt 0:01:42]} Nc3 {[%emt 0:00:08]} 51. Bb3 {[%emt 0:00:02]} Rd3 {[%emt 0:00:02]} 52. Ne7+ {[%emt 0:00:23]} Kg7 {[%emt 0:00:02]} 53. Nf5+ {[%emt 0:00:01]} Kg8 {[%emt 0:00:01]} 54. Ne7+ {[%emt 0:00:01]} Kf8 {[%emt 0:00:14]} 55. Nxc6 {[%emt 0:00:26]} bxc6 {[%emt 0:00:02]} 56. Ke1 {[%emt 0:00:01]} Ne4 {[%emt 0:00:13]} 57. Bc2 {[%emt 0:00:10]} Rxg3 {[%emt 0:00:03]} 58. Rxc6 {[%emt 0:00:06]} f5 {[%emt 0:00:06]} 59. Bxe4 {[%emt 0:00:09]} Re3+ {[%emt 0:00:05]} 60. Kf2 {[%emt 0:00:02]} Rxe4 {[%emt 0:00:01]} 61. Kf3 {[%emt 0:00:02]} Ke7 {[%emt 0:00:03]} 62. b5 {[%emt 0:00:10]} axb5 {[%emt 0:00:02]} 63. cxb5 {[%emt 0:00:02]} Rb4 {[%emt 0:00:06]} 64. b6 {[%emt 0:00:07]} Kd7 {[%emt 0:00:05]} 65. Rf6 {[%emt 0:00:03]} Rb3+ {[%emt 0:00:04]} 66. Ke2 {[%emt 0:00:04]} Ke7 {[%emt 0:00:01]} 67. Rh6 {[%emt 0:00:02]} Kd7 {[%emt 0:00:02]} 68. Kf2 {[%emt 0:00:15]} Rb2+ {[%emt 0:00:15]} 69. Kg3 {[%emt 0:00:01]} Rb4 {[%emt 0:00:03]} 70. b7 {[%emt 0:00:25]} Kc7 {[%emt 0:00:03]} 71. Rh7+ {[%emt 0:00:02]} Kb8 {[%emt 0:00:02]} 72. Rf7 {[%emt 0:00:01]} Ka7 {[%emt 0:00:13]} 73. Rxf5 {[%emt 0:00:02]} Kxb7 {[%emt 0:00:02]} 74. Rc5 {[%emt 0:00:01]} Kb6 {[%emt 0:00:13]} 75. Rc3 {[%emt 0:00:06]} Rb1 {[%emt 0:00:07]} 76. Kg4 {[%emt 0:00:01]} Rg1+ {[%emt 0:00:02]} 77. Kf5 {[%emt 0:00:02]} Rf1 {[%emt 0:00:01]} 78. Ke5 {[%emt 0:00:02]} Re1+ {[%emt 0:00:02]} 79. Kf6 {[%emt 0:00:01]} Rf1 {[%emt 0:00:01]} 80. f5 {[%emt 0:00:01]} Kb7 {[%emt 0:00:07]} 81. Ke6 {[%emt 0:00:03]} Re1+ {[%emt 0:00:02]} 82. Kf7 {[%emt 0:00:01]} Rf1 {[%emt 0:00:00]} 83. f6 {[%emt 0:00:03]} Rd1 {[%emt 0:00:23]} 84. Kg7 {[%emt 0:00:05]} Rg1+ {[%emt 0:00:02]} 85. Kf8 {[%emt 0:00:02]} Rf1 {[%emt 0:00:04]} 86. f7 {[%emt 0:00:02]} Rf2 {[%emt 0:00:01]} 87. Rc4 {[%emt 0:00:30]} Rf1 {[%emt 0:00:06]} 88. Ke7 {[%emt 0:00:08]} Re1+ {[%emt 0:00:01]} 89. Kf6 {[%emt 0:00:02]} Rf1+ {[%emt 0:00:02]} 90. Ke6 {[%emt 0:00:01]} Rf2 {[%emt 0:00:03]} 91. Rc5 {[%emt 0:00:09]} 1-0

[Event "European Online Club-ch-B 2021"]
[Site "Online"]
[Date "2021.03.27"]
[Round "4.19"]
[White "Hansen, Sune Berg"]
[Black "Sokolov, Andrei"]
[Result "1/2-1/2"]
[ECO "D02"]
[WhiteElo "2533"]
[BlackElo "2516"]
[Annotator "ChessBase"]
[PlyCount "109"]
[EventDate "2021.03.27"]
[EventType "team-tourn"]
[EventCountry "NET"]
[SourceTitle "playchess.com"]
[Source "ChessBase"]
[SourceQuality "1"]
[TimeControl "900+5"]

1. d4 {[%emt 0:00:00]} Nf6 {[%emt 0:00:07]} 2. Bf4 {[%emt 0:00:03]} e6 {[%emt 0:00:07]} 3. e3 {[%emt 0:00:03]} d5 {[%emt 0:00:20]} 4. Nd2 {[%emt 0:00:06]} Bd6 {[%emt 0:00:04]} 5. Bg3 {[%emt 0:00:04]} O-O {[%emt 0:00:11]} 6. Ngf3 {[%emt 0:00:07]} c5 {[%emt 0:00:08]} 7. c3 {[%emt 0:00:04]} Qc7 {[%emt 0:00:06]} 8. dxc5 {[%emt 0:01:11]} Bxg3 {[%emt 0:00:34]} 9. hxg3 {[%emt 0:00:04]} Nbd7 {[%emt 0:00:27]} 10. c4 {[%emt 0:00:19]} dxc4 {[%emt 0:00:33]} 11. Bxc4 {[%emt 0:00:06]} Nxc5 {[%emt 0:02:22]} 12. Rc1 {[%emt 0:00:45]} Qb6 {[%emt 0:02:10]} 13. Qc2 {[%emt 0:00:53]} Bd7 {[%emt 0:00:27]} 14. g4 {[%emt 0:04:34]} h6 {[%emt 0:00:04]} 15. g5 {[%emt 0:00:04]} hxg5 {[%emt 0:00:03]} 16. Nxg5 {[%emt 0:00:02]} Rfc8 {[%emt 0:00:02]} 17. O-O {[%emt 0:01:46]} Bb5 {[%emt 0:00:48]} 18. Rfd1 {[%emt 0:00:12]} Ncd7 {[%emt 0:00:31]} 19. Nge4 {[%emt 0:01:18]} Nxe4 {[%emt 0:00:46]} 20. Qxe4 {[%emt 0:00:05]} Nf6 {[%emt 0:00:21]} 21. Qb1 {[%emt 0:00:05]} Rd8 {[%emt 0:01:46]} 22. Bxb5 {[%emt 0:00:26]} Qxb5 {[%emt 0:00:03]} 23. Qc2 {[%emt 0:00:28]} Qd3 {[%emt 0:01:16]} 24. Qxd3 {[%emt 0:00:45]} Rxd3 {[%emt 0:00:03]} 25. Kf1 {[%emt 0:00:24]} Rad8 {[%emt 0:00:15]} 26. Ke2 {[%emt 0:00:03]} Kf8 {[%emt 0:00:18]} 27. Nc4 {[%emt 0:00:03]} Rxd1 {[%emt 0:00:10]} 28. Rxd1 {[%emt 0:00:03]} Rxd1 {[%emt 0:00:30]} 29. Kxd1 {[%emt 0:00:02]} Ne8 {[%emt 0:00:47]} 30. e4 {[%emt 0:00:28]} Ke7 {[%emt 0:00:48]} 31. Na5 {[%emt 0:00:23]} Nd6 {[%emt 0:00:28]} 32. e5 {[%emt 0:00:14]} Ne4 {[%emt 0:00:06]} 33. f3 {[%emt 0:00:23]} Nc5 {[%emt 0:00:14]} 34. Kd2 {[%emt 0:00:39]} Kd7 {[%emt 0:00:05]} 35. b4 {[%emt 0:00:11]} Na6 {[%emt 0:00:20]} 36. a3 {[%emt 0:00:48]} b6 {[%emt 0:00:09]} 37. Nc4 {[%emt 0:00:03]} Nc7 {[%emt 0:00:10]} 38. Kd3 {[%emt 0:00:27]} f5 {[%emt 0:00:09]} 39. exf6 {[%emt 0:00:05]} gxf6 {[%emt 0:00:01]} 40. Ne3 {[%emt 0:00:19]} b5 {[%emt 0:00:23]} 41. g4 {[%emt 0:00:04]} Kd6 {[%emt 0:00:04]} 42. f4 {[%emt 0:00:03]} Na8 {[%emt 0:00:06]} 43. g5 {[%emt 0:00:04]} fxg5 {[%emt 0:00:02]} 44. fxg5 {[%emt 0:00:01]} Ke5 {[%emt 0:00:04]} 45. Nc2 {[%emt 0:00:07]} Nb6 {[%emt 0:00:06]} 46. Nd4 {[%emt 0:00:02]} a6 {[%emt 0:00:02]} 47. g6 {[%emt 0:00:11]} Kf6 {[%emt 0:00:02]} 48. g7 {[%emt 0:00:01]} Kxg7 {[%emt 0:00:01]} 49. Nxe6+ {[%emt 0:00:02]} Kf6 {[%emt 0:00:03]} 50. Nc7 {[%emt 0:00:01]} Nc4 {[%emt 0:00:02]} 51. Nxa6 {[%emt 0:00:01]} Nxa3 {[%emt 0:00:02]} 52. Kc3 {[%emt 0:00:07]} Ke5 {[%emt 0:00:04]} 53. Nc7 {[%emt 0:00:05]} Kd6 {[%emt 0:00:05]} 54. Nxb5+ {[%emt 0:00:05]} Nxb5+ {[%emt 0:00:02]} 55. Kc4 {[%emt 0:00:04]} 1/2-1/2

[Event "European Online Club-ch-B 2021"]
[Site "Online"]
[Date "2021.03.27"]
[Round "4.20"]
[White "Riff, Jean-Noel"]
[Black "Engel, Luis"]
[Result "1-0"]
[ECO "B68"]
[WhiteElo "2499"]
[BlackElo "2553"]
[Annotator "ChessBase"]
[PlyCount "119"]
[EventDate "2021.03.27"]
[EventType "team-tourn"]
[EventCountry "NET"]
[SourceTitle "playchess.com"]
[Source "ChessBase"]
[SourceQuality "1"]
[TimeControl "900+5"]

1. e4 {[%emt 0:00:00]} c5 {[%emt 0:00:03]} 2. Nf3 {[%emt 0:00:02]} d6 {[%emt 0:00:01]} 3. d4 {[%emt 0:00:01]} cxd4 {[%emt 0:00:00]} 4. Nxd4 {[%emt 0:00:02]} Nf6 {[%emt 0:00:01]} 5. Nc3 {[%emt 0:00:01]} Nc6 {[%emt 0:00:01]} 6. Bg5 {[%emt 0:00:10]} e6 {[%emt 0:00:02]} 7. Qd2 {[%emt 0:00:02]} a6 {[%emt 0:00:01]} 8. O-O-O {[%emt 0:00:02]} Bd7 {[%emt 0:00:03]} 9. f4 {[%emt 0:00:06]} Be7 {[%emt 0:00:04]} 10. Nf3 {[%emt 0:00:05]} b5 {[%emt 0:00:03]} 11. Kb1 {[%emt 0:00:02]} b4 {[%emt 0:00:44]} 12. Bxf6 {[%emt 0:00:03]} Bxf6 {[%emt 0:00:54]} 13. Ne2 {[%emt 0:00:04]} Be7 {[%emt 0:00:35]} 14. f5 {[%emt 0:00:03]} exf5 {[%emt 0:01:26]} 15. exf5 {[%emt 0:00:03]} Bxf5 {[%emt 0:01:05]} 16. Qd5 {[%emt 0:00:03]} Qc8 {[%emt 0:01:04]} 17. Ned4 {[%emt 0:01:35]} Bd7 {[%emt 0:01:01]} 18. Qe4 {[%emt 0:00:30]} Ra7 {[%emt 0:02:14]} 19. Bd3 {[%emt 0:00:29]} Kf8 {[%emt 0:00:20]} 20. Qf4 {[%emt 0:01:53]} Nxd4 {[%emt 0:00:52]} 21. Nxd4 {[%emt 0:00:04]} Qc5 {[%emt 0:00:04]} 22. Rhe1 {[%emt 0:00:21]} h5 {[%emt 0:00:34]} 23. Nb3 {[%emt 0:00:11]} Qb6 {[%emt 0:00:38]} 24. Bc4 {[%emt 0:00:05]} Be8 {[%emt 0:00:12]} 25. Rf1 {[%emt 0:00:11]} Rh6 {[%emt 0:00:20]} 26. Bd5 {[%emt 0:00:57]} Bf6 {[%emt 0:00:12]} 27. Nd4 {[%emt 0:00:26]} Bxd4 {[%emt 0:00:25]} 28. Qxd4 {[%emt 0:00:01]} Qxd4 {[%emt 0:00:03]} 29. Rxd4 {[%emt 0:00:03]} a5 {[%emt 0:00:01]} 30. Rc4 {[%emt 0:00:02]} Re7 {[%emt 0:00:08]} 31. Rc8 {[%emt 0:00:05]} Rf6 {[%emt 0:00:03]} 32. Rd1 {[%emt 0:00:03]} Rf2 {[%emt 0:00:23]} 33. Bf3 {[%emt 0:00:07]} g5 {[%emt 0:00:22]} 34. a3 {[%emt 0:00:17]} g4 {[%emt 0:00:04]} 35. Ba8 {[%emt 0:00:03]} bxa3 {[%emt 0:00:07]} 36. bxa3 {[%emt 0:00:01]} Kg7 {[%emt 0:00:04]} 37. Rxd6 {[%emt 0:00:08]} Re5 {[%emt 0:00:18]} 38. Rd5 {[%emt 0:00:52]} Rxd5 {[%emt 0:00:24]} 39. Bxd5 {[%emt 0:00:02]} Bd7 {[%emt 0:00:20]} 40. Rc7 {[%emt 0:00:02]} Ba4 {[%emt 0:00:19]} 41. c4 {[%emt 0:00:22]} Bb3 {[%emt 0:00:14]} 42. Rd7 {[%emt 0:00:21]} Ba4 {[%emt 0:00:58]} 43. Ra7 {[%emt 0:00:04]} Bc2+ {[%emt 0:00:04]} 44. Kc1 {[%emt 0:00:06]} Bd3 {[%emt 0:00:08]} 45. Rxa5 {[%emt 0:00:12]} f5 {[%emt 0:00:03]} 46. c5 {[%emt 0:00:06]} h4 {[%emt 0:00:10]} 47. c6 {[%emt 0:00:02]} Rc2+ {[%emt 0:00:08]} 48. Kd1 {[%emt 0:00:02]} h3 {[%emt 0:00:03]} 49. gxh3 {[%emt 0:00:05]} gxh3 {[%emt 0:00:00]} 50. Ra7+ {[%emt 0:00:04]} Kf6 {[%emt 0:00:02]} 51. c7 {[%emt 0:00:01]} Ke5 {[%emt 0:00:16]} 52. Bb3 {[%emt 0:00:09]} Rc6 {[%emt 0:00:39]} 53. Ba4 {[%emt 0:00:03]} Rc5 {[%emt 0:00:26]} 54. Ra5 {[%emt 0:00:10]} Rxa5 {[%emt 0:00:06]} 55. c8=Q {[%emt 0:00:02]} Kd4 {[%emt 0:00:10]} 56. Qd8+ {[%emt 0:00:02]} Rd5 {[%emt 0:00:01]} 57. Qf6+ {[%emt 0:00:06]} Ke3 {[%emt 0:00:05]} 58. Qg5+ {[%emt 0:00:11]} Kd4 {[%emt 0:00:17]} 59. Bb3 {[%emt 0:00:13]} Rb5 {[%emt 0:00:10]} 60. Bc2 {[%emt 0:00:15]} 1-0